Cogmind - Beta 13 @@@ ROGUE MODE // 2024.05.03 @ 12:52:31 Player: Bean Result: Destroyed by P-60 Hacker with Shock Rifle Performance ------------- Evolutions (2) 1000 Regions Visited (6) 1200 Robots Destroyed (18) 90 Value Destroyed (645) 645 Prototype IDs (23) 460 Alien Tech Used (0) 0 Bonus (500) 500 TOTAL SCORE: 3895 Bonus ------- Entered Garrisons 200 Aligned with FarCom 300 Cogmind --------- Core Integrity 0/550 Matter 300/300 Energy 59/100 System Corruption 7% Temperature Cool (0) Movement Core (400) Ox7 Location -8/Garrison Parts ------- > --- POWER (1) -------- (None) > --- PROPULSION (4) --- (None) > --- UTILITY (4) ------ Structural Scanner Targeting Computer Targeting Computer Targeting Computer > --- WEAPON (2) ------- Firepult > --- INVENTORY (5) ---- Light Ion Engine Cryofiber Web Improved Sensor Array Peak State ------------ > --- POWER ------------ Light Ion Engine > --- PROPULSION ------- Flight Unit Flight Unit > --- UTILITY ---------- Structural Scanner Targeting Computer > --- WEAPON ----------- Firepult > --- INVENTORY -------- Targeting Computer Light Assault Rifle Light Assault Rifle [Rating: 25] Favorites ----------- Power Light Ion Engine Engine Light Ion Engine Propulsion Wheel Wheel Wheel Flight Unit Xenon Bombardment Thruster Utility Targeting Computer Device Structural Scanner Storage Small Storage Unit Processor Targeting Computer Weapon Particle Gun Energy Gun Particle Gun Energy Cannon Firepult Ballistic Gun Light Assault Rifle Build | -11 -10 -10 -10 -9 -8 -8 ------- Run | Yrd Mat Min Exi Min Mat Gar Slots Evolved 4 | . . . . . 4 . Power . | . . . . . . . Propulsion 2 | . . . . . 2 . Utility 2 | . . . . . 2 . Weapon . | . . . . . . . Parts Attached 31 | 6 . 14 3 . 7 1 Power 3 | 1 . 2 . . . . Engine 3 | 1 . 2 . . . . Core . | . . . . . . . Reactor . | . . . . . . . Propulsion 11 | 2 . 4 . . 5 . Treads . | . . . . . . . Leg . | . . . . . . . Wheel 4 | 2 . 2 . . . . Hover . | . . . . . . . Flight 7 | . . 2 . . 5 . Utility 6 | 1 . 3 . . 2 . Device 2 | . . 2 . . . . Storage 1 | 1 . . . . . . Processor 3 | . . 1 . . 2 . Hackware . | . . . . . . . Protection . | . . . . . . . Artifact . | . . . . . . . Weapon 11 | 2 . 5 3 . . 1 Energy Gun 3 | 1 . 2 . . . . Energy Cannon 2 | . . . 1 . . 1 Ballistic Gun 6 | 1 . 3 2 . . . Ballistic Cannon . | . . . . . . . Launcher . | . . . . . . . Special Weapon . | . . . . . . . Impact Weapon . | . . . . . . . Slashing Weapon . | . . . . . . . Piercing Weapon . | . . . . . . . Special Melee Weapon . | . . . . . . . Unidentified Prototypes . | . . . . . . . Parts Lost 10 | . . 3 . . . 7 Power 1 | . . . . . . 1 Propulsion 6 | . . 2 . . . 4 Utility . | . . . . . . . Weapon 3 | . . 1 . . . 2 Highest Loss Streak 7 | . . 2 . . . 7 To Critical Strikes . | . . . . . . . Average Slot Usage (%) 91 | . 85 91 90 100 96 78 Engine 12 | . 14 14 14 14 9 6 Wheel 10 | . 28 17 . . . . Flight 13 | . . 3 28 28 33 20 Device 12 | . . 13 14 14 9 9 Storage 7 | . 14 12 . . . . Processor 9 | . . 1 14 14 26 27 Energy Gun 13 | . 14 24 . . . . Energy Cannon 1 | . . . 8 . . 2 Ballistic Gun 8 | . 14 3 10 28 18 12 Naked Turns . | . . . . . . . Heaviest Build 26 | 12 12 19 26 6 6 23 Greatest Support 22 | 20 20 20 8 8 22 12 Greatest Overweight (x) 7 | . . 5 3 . . 7 Average Overweight (x) . | . . . . . . . Largest Inventory Capacity 8 | 8 8 8 5 5 5 5 Average Capacity 6 | 6 8 7 5 5 5 5 Most Carried 8 | 5 2 8 5 4 5 5 Average Carried 4 | 2 2 5 2 3 3 4 Final Capacity 8 | 8 8 5 5 5 5 5 Final Carried 5 | 2 2 1 3 4 5 3 Class Distribution -------------------- 54% | Mutant 45% | Scavenger-Mutant Dominant Class ---------------- Mutant | -10/Materials Scavenger-Mutant | -10/Mines Mutant | -10/Exiles Scavenger-Mutant | -9/Mines Mutant | -8/Materials Mutant | -8/Garrison Resources | -11 -10 -10 -10 -9 -8 -8 ----------- Run | Yrd Mat Min Exi Min Mat Gar Matter Collected 529 | 196 . 219 . 16 98 . Remotely . | . . . . . . . Salvage Created 576 | . . 435 . . 45 96 Parts 41 | . . 33 . . 5 3 Haulers Intercepted . | . . . . . . . Recyclers Shooed . | . . . . . . . Parts Field Recycled . | . . . . . . . Retrieved Matter . | . . . . . . . Parts Self-Destructed . | . . . . . . . Prevented . | . . . . . . . Kills | -11 -10 -10 -10 -9 -8 -8 ------- Run | Yrd Mat Min Exi Min Mat Gar Combat Hostiles Destroyed 14 | . . 9 . . 3 2 Guns 12 | . . 9 . . 3 . AOE 2 | . . . . . . 2 Classes Destroyed 7 | . . 6 . . . 1 Worker 2 | . . 2 . . . . Builder 1 | . . 1 . . . . Recycler 1 | . . 1 . . . . Swarmer 6 | . . 3 . . 3 . Grunt 4 | . . 4 . . . . Sentry 2 | . . 2 . . . . Programmer 2 | . . . . . . 2 Best Kill Streak 3 | . . 2 . . 3 2 Combat Bots Only 3 | . . 2 . . 3 2 Max Kills in Single Turn 1 | . . 1 . . 1 1 Gunslinging . | . . . . . . . Exploded 1 | . . . . . . 1 Melee . | . . . . . . . Uniques/NPCs Destroyed . | . . . . . . . Combat | -11 -10 -10 -10 -9 -8 -8 -------- Run | Yrd Mat Min Exi Min Mat Gar Hostile Shots Fired 171 | . 8 61 . . 43 59 Missed 49 | . 5 16 . . 16 12 Damage Taken 1822 | . 23 641 . . 229 929 Core 764 | . 6 202 . . 78 478 Absorbed by Shields . | . . . . . . . Core Remaining (%) 58 | 100 . . . 16 . . Volleys Fired 64 | . . 37 . . 13 14 Largest 2 | . . 2 . . 2 2 Hottest 250 | . . 130 . . 40 250 Shots Fired 123 | . . 74 . . 26 23 Gun 121 | . . 74 . . 26 21 Cannon 2 | . . . . . . 2 Launcher . | . . . . . . . Special . | . . . . . . . Kinetic 57 | . . 10 . . 26 21 Thermal 66 | . . 64 . . . 2 Explosive . | . . . . . . . Electromagnetic . | . . . . . . . Robot Hit Streak 14 | . . 11 . . 7 14 Robot Miss Streak 6 | . . 6 . . 4 . Penetration Max . | . . . . . . . Secondary Targets 2 | . . . . . 2 . Max Gunslinging Chain 1 | . . . . . 1 . Shots Hit Robots 74 | . . 47 . . 17 10 Core Hits 31 | . . 22 . . 5 4 Critical Kills . | . . . . . . . Critical Parts Destroyed 1 | . . . . . 1 . Critical Strikes 4 | . . 3 . . 1 . Burn 3 | . . 3 . . . . Destroy 1 | . . . . . 1 . Melee Attacks . | . . . . . . . Impact . | . . . . . . . Slashing . | . . . . . . . Piercing . | . . . . . . . Sneak Attacks . | . . . . . . . Combat Hostiles . | . . . . . . . Follow-up Attacks . | . . . . . . . Damage Inflicted 1036 | . . 685 . . 140 211 Guns 907 | . . 685 . . 140 82 Cannons 18 | . . . . . . 18 Explosions 108 | . . . . . . 108 Melee . | . . . . . . . Ramming 3 | . . . . . . 3 Kinetic 320 | . . 98 . . 140 82 Thermal 713 | . . 587 . . . 126 Explosive . | . . . . . . . Electromagnetic . | . . . . . . . Impact . | . . . . . . . Slashing . | . . . . . . . Piercing . | . . . . . . . Highest Corruption 7 | . . . . . . 7 Average Corruption 4 | . . . . . . 4 Corruption Purged . | . . . . . . . Corruption Blocked . | . . . . . . . Effects 1 | . . . . . . 1 Data Loss (minor) 1 | . . . . . . 1 Overload Shots . | . . . . . . . Overflow Damage 45 | . . . . . . 45 Projectiles . | . . . . . . . Explosions 45 | . . . . . . 45 Melee . | . . . . . . . Knockbacks . | . . . . . . . Impact . | . . . . . . . Kinetic . | . . . . . . . Secondary . | . . . . . . . Self-Inflicted Damage 208 | . . . . . . 208 Shots 7 | . . . . . . 7 Rammed 3 | . . . . . . 3 Targets Rammed 3 | . . . . . . 3 Kicked . | . . . . . . . Crushed . | . . . . . . . Highest Temperature 659 | . . 659 . . . 268 Average Temperature 164 | . . 167 . . . 134 Received Heat Transfer 213 | . . 213 . . . . Effects 12 | . . 12 . . . . Shutdowns 1 | . . 1 . . . . Energy Bleed 2 | . . 2 . . . . Interference 3 | . . 3 . . . . Short Circuit 1 | . . 1 . . . . Damage (minor) 3 | . . 3 . . . . Damage (core) 2 | . . 2 . . . . Siege Activations . | . . . . . . . Robots Corrupted . | . . . . . . . Combat Hostiles . | . . . . . . . Parts Fried . | . . . . . . . Impact Corruptions . | . . . . . . . Robots Melted . | . . . . . . . Combat Hostiles . | . . . . . . . Parts Melted 9 | . . 5 . . . 4 Heat Transferred 2416 | . . 1776 . . . 640 Parts Sabotaged . | . . . . . . . Parts Stolen . | . . . . . . . Parts Stripped . | . . . . . . . Power Chain Reactions . | . . . . . . . Alert | -11 -10 -10 -10 -9 -8 -8 ------- Run | Yrd Mat Min Exi Min Mat Gar Peak Influence 185 | . 15 150 . . 135 185 Initial 90 | . . 5 . . . 90 Average 68 | . 3 71 . . 75 135 Maximum Alert Level . | . . . . . . . Low Security (%) 100 | 100 100 100 . 100 100 100 Level 1 . | . . . . . . . Level 2 . | . . . . . . . Level 3 . | . . . . . . . Level 4 . | . . . . . . . Level 5 . | . . . . . . . High Security . | . . . . . . . Max Security . | . . . . . . . Squads Dispatched . | . . . . . . . Investigation . | . . . . . . . Extermination . | . . . . . . . Reinforcement . | . . . . . . . Assault . | . . . . . . . Garrison . | . . . . . . . Intercept . | . . . . . . . Searches Triggered . | . . . . . . . Construction Impeded . | . . . . . . . Haulers Reinforced . | . . . . . . . Active Scanning Responses . | . . . . . . . Cargo Convoy Interrupts . | . . . . . . . Stealth | -11 -10 -10 -10 -9 -8 -8 --------- Run | Yrd Mat Min Exi Min Mat Gar Distress Signals 1 | . 1 . . . . . Communications Jammed . | . . . . . . . Distress Signals . | . . . . . . . Times Spotted 27 | . 5 9 . . 9 4 Peak Tracking Total 7 | . 7 2 . . 4 4 Tactical Retreats 1 | . . . . . 1 . Traps | -11 -10 -10 -10 -9 -8 -8 ------- Run | Yrd Mat Min Exi Min Mat Gar Traps Triggered 1 | . . . . . . 1 Indirectly . | . . . . . . . Trap Hack Attempts . | . . . . . . . Triggered . | . . . . . . . Disarmed . | . . . . . . . Reprogrammed . | . . . . . . . Reused . | . . . . . . . Traps Extracted . | . . . . . . . Installed . | . . . . . . . Triggered . | . . . . . . . Machines | -11 -10 -10 -10 -9 -8 -8 ---------- Run | Yrd Mat Min Exi Min Mat Gar Machines Disabled 3 | . . 1 . . . 2 Max in Single Turn 2 | . . 1 . . . 2 Phase Generator 1 | . . . . . . 1 Machines Repaired . | . . . . . . . Machines Dismantled . | . . . . . . . Machines Sabotaged . | . . . . . . . Overloaded Fab Kills . | . . . . . . . Hacking | -11 -10 -10 -10 -9 -8 -8 --------- Run | Yrd Mat Min Exi Min Mat Gar Machines Accessed 3 | . . . 1 . 1 1 Terminals 1 | . . . . . . 1 Fabricators . | . . . . . . . Repair Stations . | . . . . . . . Recycling Units . | . . . . . . . Scanalyzers . | . . . . . . . Garrison Access 1 | . . . . . 1 . Total Hacks 3 | . . . 1 . 1 1 Successful 3 | . . . 1 . 1 1 Failed . | . . . . . . . Catastrophic . | . . . . . . . Database Lockouts . | . . . . . . . Manual 1 | . . . 1 . . . Terminals 1 | . . . . . . 1 Fabricators . | . . . . . . . Repair Stations . | . . . . . . . Recycling Units . | . . . . . . . Scanalyzers . | . . . . . . . Garrison Access 1 | . . . . . 1 . Terminal Hacks 2 | . . . 1 . . 1 Emergency Access Points 1 | . . . . . . 1 Derelict Proto ID Bank 1 | . . . 1 . . . Fabricator Hacks . | . . . . . . . Repair Station Hacks . | . . . . . . . Recycling Unit Hacks . | . . . . . . . Scanalyzer . | . . . . . . . Garrison Access Hacks 1 | . . . . . 1 . Unlock Access 1 | . . . . . 1 . Unauthorized Hacks . | . . . . . . . Terminals . | . . . . . . . Fabricators . | . . . . . . . Repair Stations . | . . . . . . . Recycling Units . | . . . . . . . Scanalyzers . | . . . . . . . Garrison Access . | . . . . . . . Data Cores Recovered . | . . . . . . . Used . | . . . . . . . Hacking Detections 1 | . . . . . . 1 Full Trace Events . | . . . . . . . Feedback Events . | . . . . . . . Feedback Blocked . | . . . . . . . Robot Schematics Acquired . | . . . . . . . Robots Built . | . . . . . . . Authchips . | . . . . . . . Time . | . . . . . . . Total Robot Build Rating . | . . . . . . . Part Schematics Acquired . | . . . . . . . Parts Built . | . . . . . . . Authchips . | . . . . . . . Time . | . . . . . . . Total Part Build Rating . | . . . . . . . Parts Repaired . | . . . . . . . Time . | . . . . . . . Parts Recycled . | . . . . . . . Recycled Matter . | . . . . . . . Retrieved Matter . | . . . . . . . Retrieved Components . | . . . . . . . Parts Scanalyzed . | . . . . . . . Part Schematics Acquired . | . . . . . . . Parts Damaged . | . . . . . . . Bothacking | -11 -10 -10 -10 -9 -8 -8 ------------ Run | Yrd Mat Min Exi Min Mat Gar Used RIF Installer . | . . . . . . . Robots Hacked . | . . . . . . . Non-combat . | . . . . . . . Combat . | . . . . . . . Robot Hacks Applied . | . . . . . . . Relay Couplers Released . | . . . . . . . Fabnet Peak Effective % . | . . . . . . . Robots Rewired . | . . . . . . . Allies Hacked . | . . . . . . . Hacks Repelled . | . . . . . . . Allies | -11 -10 -10 -10 -9 -8 -8 -------- Run | Yrd Mat Min Exi Min Mat Gar Total Allies 1 | . . . . 1 . . Largest Group 1 | . . . . 1 . . Highest-Rated Group 31 | . . . . 31 . . Highest-Rated Ally 31 | . . . . 31 . . Total Orders . | . . . . . . . Ally Attacks . | . . . . . . . Total Damage . | . . . . . . . Kills . | . . . . . . . Allies Corrupted . | . . . . . . . Allies Melted . | . . . . . . . Intel | -11 -10 -10 -10 -9 -8 -8 ------- Run | Yrd Mat Min Exi Min Mat Gar Robot Analysis Total . | . . . . . . . Derelict Logs Recovered 3 | . . 2 . 1 . . Drone Launches . | . . . . . . . Drone Recoveries . | . . . . . . . Exploration | -11 -10 -10 -10 -9 -8 -8 ------------- Run | Yrd Mat Min Exi Min Mat Gar Turns Passed 1255 | 55 41 672 184 49 148 106 Spaces Moved 1347 | 47 46 618 223 108 214 91 Core 50 | 9 . 38 . . . 3 Treads . | . . . . . . . Legs . | . . . . . . . Wheels 508 | 38 46 424 . . . . Hover . | . . . . . . . Flight 789 | . . 156 223 108 214 88 Fastest Speed 31 | 50 80 37 37 37 31 37 Average Speed 68 | 74 80 82 80 37 36 50 Slowest Speed 400 | 80 80 300 277 37 37 400 Overloaded Moves . | . . . . . . . Propulsion Burnouts . | . . . . . . . Robots Hopped . | . . . . . . . Cave-ins Triggered . | . . . . . . . Exploration Rate (%) 35 | 3 15 99 60 35 20 15 Regions Visited 6 Branch Regions 3 Pre-discovered Areas 1 | . . 1 . . . . Known Exits Taken 1 | . . . . . 1 . Unknown Exits Taken 5 | 1 1 1 1 1 . . Scrap Searched 2 | . . 1 . 1 . . Spaces Dug . | . . . . . . . Terrain Destroyed 77 | . . . . . . 77 Melee . | . . . . . . . Projectile . | . . . . . . . AOE 77 | . . . . . . 77 Terrain Rammed . | . . . . . . . Walls Destroyed . | . . . . . . . Machines Disabled . | . . . . . . . Actions | -11 -10 -10 -10 -9 -8 -8 --------- Run | Yrd Mat Min Exi Min Mat Gar Total 1555 | 67 49 707 229 116 263 124 Wait 50 | 5 4 14 . 8 19 . Move 1341 | 46 45 617 222 107 213 91 Hop . | . . . . . . . Pick Up 33 | 9 . 14 1 1 8 . Fast Attach . | . . . . . . . Attach 24 | 6 . 10 3 . 4 1 Detach 3 | . . . 3 . . . Swap 7 | . . 4 . . 3 . Drop 15 | 1 . 11 . . 3 . Fire 64 | . . 37 . . 13 14 Melee . | . . . . . . . Ram 3 | . . . . . . 3 Kick . | . . . . . . . Crush . | . . . . . . . Escape Stasis 15 | . . . . . . 15 Rewire . | . . . . . . . Trap . | . . . . . . . Miscellaneous . | . . . . . . . Route ------- -11/Scrapyard -10/Materials -10/Mines (discovered 3 exits: [*Mat x2] / *Exi) -10/Exiles -9/Mines -8/Materials -8/Garrison History --------- Turn | Location | Event 6 | -11/Scrapyard | Discovered new exit (range 15) 56 | -11/Scrapyard | Entered Materials 77 | -10/Materials | Discovered new exit (range 16) 97 | -10/Materials | Entered Mines 302 | -10/Mines | Build established: Mutant 546 | -10/Mines | Learned 4 Materials zone layouts 581 | -10/Mines | Discovered new exit (range 10) 638 | -10/Mines | Build established: Scavenger-Mutant 656 | -10/Mines | Core integrity fell below 50% 661 | -10/Mines | Core integrity fell below 20% 673 | -10/Mines | Discovered new exit (range 7) 726 | -10/Mines | Learned location of Storage (-7) 768 | -10/Mines | Deemed a non-threat by the Exiles lab entrance 768 | -10/Mines | Discovered new exit (range 5) 769 | -10/Mines | Entered Exiles 779 | -10/Exiles | Met 8R-AWN 784 | -10/Exiles | Met EX-HEX 796 | -10/Exiles | Met EX-BIN 800 | -10/Exiles | Aligned with FarCom system 801 | -10/Exiles | Given EX-Vault access code 810 | -10/Exiles | Opened EX-Vault 815 | -10/Exiles | Found Firepult 874 | -10/Exiles | Warned to stay clear of 0b10 Research branches 936 | -10/Exiles | Met EX-DEC 949 | -10/Exiles | Discovered new exit (range 12) 953 | -10/Exiles | Left Exiles lab with Firepult 953 | -10/Exiles | Entered Mines 956 | -9/Mines | Received a Mining Laser from a helpful Derelict 964 | -9/Mines | Learned Materials garrison access intel 1000 | -9/Mines | Discovered new exit (range 6) 1002 | -9/Mines | Entered Materials 1002 | -8/Materials | Evolved 4 slots: Propulsion x2, Utility x2 1004 | -8/Materials | Loaded intel: 1 garrison access location 1150 | -8/Materials | Identified exit to Garrison 1150 | -8/Materials | Entered Garrison 1199 | -8/Garrison | Phase Generator disabled 1229 | -8/Garrison | Core integrity fell below 50% 1244 | -8/Garrison | Core integrity fell below 20% 1256 | -8/Garrison | Destroyed by P-60 Hacker with Shock Rifle Last Messages --------------- P-60 Hacker springs to life. Xenon Bombardment Thruster destroyed. Lgt. Assault Rifle destroyed. Lgt. Ion Engine destroyed. Xenon Bombardment Thruster destroyed. Lgt. Assault Rifle destroyed. Penetrated by Slug. P-60 Hacker destroyed. P-60 Hacker heat damages Shock Rifle. Penetrated by Slug. System corrupted: Component data lost. Imp. Heat Sink melted. Shock Rifle melted. Gravmag System melted. Target Analyzer melted. P-60 Hacker destroyed. Destroyed Shock Rifle. Slammed into P-60 Hacker. Destabilizing: Core damaged (-22). Slammed into P-60 Hacker. Map ----- +----------------------------------------------------+ | | | | | | | | | | | | | ?????????????????????????????????????????????????? | | ?????????????????????????????????????????????????? | | ?????????????????????????????????????????????????? | | ?????????????????????????????????????????????????? | | ?????????????????????????????????????????????????? | | ?????????????????????????????????????????????????? | | ?????????????????????????????????????????????????? | | ???????????????????????????????#########?????????? | | ???????????????????????????????##################? | | ???????????????????????????????## ###########? | | ???????????????????????????????## + ### | | ???????????????????????????????## ######## ### | | ???????????????????????????????## ######## | | ???????????????????????????????## ####?## | | ???????????????????????????????## ##???## | | ???????????????????????????????## ##??### | | ??????#???????????????########### ##??## | | ??????????????????????########### ##??## | | ??????????????????????## p * !## ##??## | | ??????????????????????## @# #! ## ##??## | | ??????????????????????### #%# ### ##??## | | ??????????????????????## /h+ !## ##??## | | ??????????????????????## !# #! ## ###### # | | ??????????????????????##### ##### #T##### | | ??????????????????????##### ##### ## | | ?????????????????????????## #### # | | ?????????????????????????## ##### #### #### ### | | ???#?????????????????????## #####^ ^#### #### ### | | ?????????????????????????## ##?## ^^##??? " ## ??? | | ?????????????????????????## ##?## ##??????# ?? | | #????????????????????????## ##?## ##???????###?? | | ??#??????????????????????## ##?## ##???????###?? | | ??#????#?????????????????## ##?## + ?+?????????? | | ?????????????????????????## ##?## ##???????????? | | ??????????????????????????? ????# ##???????????? | | ??????????????????????????? ????# ##???????????? | | ??????????????????????????? ????# ##???????????? | | ??????#???????????????????? ????# ##???????????? | | ??????????????????????????? ????# ?#?????????? | | ??????????????????????????? ????# #??#?????????? | | ?????????????????#??#???????????? #????#???????? | | ????????????????????????????????? ?????????????? | | ?????????????#?????????????#????? ?????????????? | | ??????#??????????????????????????????????????????? | +----------------------------------------------------+ Best States ------------- Heat Dissipation 39 Energy Generation 12 Energy Capacity 265 Matter Stores 300 Matter Capacity 300 Sight Range 16 Terrain Scan Density 10 Evasion (%) 63 Targeting Accuracy 15 Item Schematics ----------------- None Robot Schematics ------------------ None Fabricated ------------ Nothing Alien Tech Used ----------------- None Achievements -------------- None Challenges ------------ None Game ------ Seed WardroneAutogunKit Manual? 0 Play Time 00:15:28 Cumulative 16.5 hours Start 2024.05.03 @ 12:38:31 End 2024.05.03 @ 12:52:31 Sessions 1 Manual Loads 0 Difficulty Rogue Special Mode None Game No. 46 Rogue 46 Adventurer 0 Explorer 0 Win Type - Total 0 Types 0/0/0/0/0/0/0/0/0 Lore% 20 Gallery% 26 Achievement% 21 Wizard Run 0 Options --------- Layout 2 ASCII 0 Keyboard 0 Movement Numpad Keybinds 0 Fullscreen 1 Font 24/Smallcaps Map View 50x44 Zoom Use 0% Tactical HUD 0 Map Filters NONE Filters NONE Steam 1 RUN: 2d173cfb-bd7d-4b8d-ae0c-4288bbfb09d4